[Event "The Schackveckan 2023: Göteborg open"]
[Site "Göteborgs schackcentrum, Vegagatan 20, Gothenburg, Sweden"]
[Date "2023.08.13"]
[Round "7.1"]
[White "Krantz, Martin"]
[Black "Ustianovich, Nazar"]
[Result "0-1"]
[TimeControl "15 minutes + 5 seconds per move from move one (Round 1 - 4) / 90 minutes + 30 seconds per move from move one (Round 5 - 8)"]
[BlackTitle "FM"]
[WhiteFideId "1724100"]
[BlackFideId "14109778"]
[WhiteElo "2000"]
[BlackElo "2314"]

1. d4 {[%clk 01:30:48]} {[%emt 00:00:10]} Nf6 {[%clk 01:30:23]} {[%emt
00:00:37]} 2. Bf4 {[%clk 01:31:00]} {[%emt 00:00:20]} c5 {[%clk 01:30:44]}
{[%emt 00:00:09]} 3. d5 {[%clk 01:31:01]} {[%emt 00:00:28]} Qb6 {[%clk
01:29:39]} {[%emt 00:01:36]} 4. Nc3 {[%clk 01:31:08]} {[%emt 00:00:23]} d6
{[%clk 01:25:26]} {[%emt 00:04:43]} 5. e4 {[%clk 01:29:21]} {[%emt 00:02:16]}
g6 {[%clk 01:25:54]} {[%emt 00:00:03]} 6. Nf3 {[%clk 01:28:01]} {[%emt
00:01:49]} Bg4 {[%clk 01:26:05]} {[%emt 00:00:20]} 7. Be2 {[%clk 01:22:18]}
{[%emt 00:06:12]} Bxf3 {[%clk 01:24:22]} {[%emt 00:02:13]} 8. gxf3 {[%clk
01:17:51]} {[%emt 00:04:57]} Nbd7 {[%clk 01:24:36]} {[%emt 00:00:17]} 9. Qd2
{[%clk 01:17:33]} {[%emt 00:00:47]} a6 {[%clk 01:21:24]} {[%emt 00:03:43]} 10.
O-O {[%clk 01:10:06]} {[%emt 00:07:56]} Bg7 {[%clk 01:21:38]} {[%emt 00:00:17]}
11. Rab1 {[%clk 01:08:29]} {[%emt 00:02:07]} Qc7 {[%clk 01:20:12]} {[%emt
00:01:56]} 12. a4 {[%clk 01:07:47]} {[%emt 00:01:12]} Rb8 {[%clk 01:17:07]}
{[%emt 00:03:35]} 13. Rfe1 {[%clk 00:56:55]} {[%emt 00:11:21]} O-O {[%clk
01:16:07]} {[%emt 00:01:31]} 14. Be3 {[%clk 00:49:28]} {[%emt 00:07:56]} Rfc8
{[%clk 01:14:53]} {[%emt 00:01:45]} 15. Bc4 {[%clk 00:43:13]} {[%emt 00:06:45]}
Ne5 {[%clk 01:14:44]} {[%emt 00:00:39]} 16. Qe2 {[%clk 00:43:33]} {[%emt
00:00:09]} Qd7 {[%clk 01:14:29]} {[%emt 00:00:46]} 17. Kg2 {[%clk 00:40:04]}
{[%emt 00:03:59]} Nh5 {[%clk 01:06:30]} {[%emt 00:08:28]} 18. a5 {[%clk
00:35:45]} {[%emt 00:04:50]} f5 {[%clk 01:05:22]} {[%emt 00:01:38]} 19. f4
{[%clk 00:29:46]} {[%emt 00:06:29]} Nxc4 {[%clk 01:05:24]} {[%emt 00:00:28]} 20.
Qxc4 {[%clk 00:30:14]} {[%emt 00:00:02]} fxe4 {[%clk 01:04:00]} {[%emt
00:01:54]} 21. Nxe4 {[%clk 00:24:33]} {[%emt 00:06:11]} Qg4+ {[%clk 00:59:17]}
{[%emt 00:05:14]} 22. Ng3 {[%clk 00:23:01]} {[%emt 00:02:01]} Rf8 {[%clk
00:55:46]} {[%emt 00:04:01]} 23. h3 {[%clk 00:19:36]} {[%emt 00:03:54]} Nxf4+
{[%clk 00:55:39]} {[%emt 00:00:38]} 24. Bxf4 {[%clk 00:19:58]} {[%emt
00:00:08]} Rxf4 {[%clk 00:54:54]} {[%emt 00:01:14]} 25. hxg4 {[%clk 00:18:24]}
{[%emt 00:02:04]} Rxc4 {[%clk 00:55:21]} {[%emt 00:00:04]} 26. Rxe7 {[%clk
00:18:04]} {[%emt 00:00:49]} Rxc2 {[%clk 00:53:26]} {[%emt 00:02:26]} 27. b4
{[%clk 00:13:30]} {[%emt 00:05:05]} c4 {[%clk 00:51:09]} {[%emt 00:02:46]} 28.
b5 {[%clk 00:13:06]} {[%emt 00:00:54]} axb5 {[%clk 00:50:51]} {[%emt 00:00:48]}
29. Rxb5 {[%clk 00:13:27]} {[%emt 00:00:09]} Rb2 {[%clk 00:51:15]} {[%emt
00:00:06]} 30. Rxb2 {[%clk 00:12:11]} {[%emt 00:01:46]} Bxb2 {[%clk 00:51:40]}
{[%emt 00:00:05]} 31. Ne2 {[%clk 00:08:50]} {[%emt 00:03:50]} c3 {[%clk
00:44:03]} {[%emt 00:08:07]} 32. Rc7 {[%clk 00:06:45]} {[%emt 00:02:35]} Ra8
{[%clk 00:42:44]} {[%emt 00:01:51]} 33. Nxc3 {[%clk 00:06:48]} {[%emt
00:00:26]} Rxa5 {[%clk 00:30:13]} {[%emt 00:13:02]} 34. Ne4 {[%clk 00:06:02]}
{[%emt 00:01:14]} b6 {[%clk 00:28:33]} {[%emt 00:02:11]} 35. Rc6 {[%clk
00:05:17]} {[%emt 00:01:14]} Rxd5 {[%clk 00:28:51]} {[%emt 00:00:13]} 36. Rxb6
{[%clk 00:05:26]} {[%emt 00:00:21]} Be5 {[%emt 00:00:47]} 37. f4 {[%clk
00:05:11]} Rd4 {[%clk 00:28:50]} {[%emt 00:00:59]} 38. Kf3 {[%clk 00:03:31]}
{[%emt 00:02:11]} d5 {[%clk 00:24:45]} {[%emt 00:04:34]} 39. fxe5 {[%clk
00:03:08]} {[%emt 00:00:53]} Rxe4 {[%clk 00:25:13]} {[%emt 00:00:02]} 40. e6
{[%clk 00:02:37]} {[%emt 00:01:01]} g5 {[%clk 00:24:21]} {[%emt 00:01:22]} 41.
Rd6 {[%clk 00:02:33]} {[%emt 00:00:34]} Re5 {[%clk 00:24:17]} {[%emt 00:00:34]}
42. Rd7 {[%clk 00:02:48]} {[%emt 00:00:15]} h6 {[%clk 00:24:40]} {[%emt
00:00:07]} 43. Kf2 {[%clk 00:02:53]} {[%emt 00:00:26]} Kf8 {[%clk 00:24:46]}
{[%emt 00:00:23]} 44. Kf3 {[%clk 00:03:09]} {[%emt 00:00:14]} Ke8 {[%clk
00:25:09]} {[%emt 00:00:06]} 45. Kg3 {[%clk 00:00:00]} {[%emt 00:02:41]} Re3+
{[%clk 00:27:12]} {[%emt 00:01:09]} 46. Kf2 {[%clk 00:03:05]} {[%emt 00:00:15]}
Re4 {[%clk 00:27:18]} {[%emt 00:00:24]} 47. Kg3 {[%clk 00:02:23]} {[%emt
00:01:12]} d4 {[%clk 00:20:35]} {[%emt 00:07:14]} 48. Kf3 {[%clk 00:02:31]}
{[%emt 00:00:22]} Re3+ {[%clk 00:20:20]} {[%emt 00:00:45]} 49. Kf2 {[%clk
00:02:48]} {[%emt 00:00:12]} Re4 {[%clk 00:18:06]} {[%emt 00:02:44]} 50. Kf3
{[%clk 00:03:13]} {[%emt 00:00:06]} Rf4+ {[%clk 00:18:33]} {[%emt 00:00:03]} 51.
Kg3 {[%clk 00:03:36]} {[%emt 00:00:06]} Kf8 {[%clk 00:18:58]} {[%emt 00:00:05]}
52. Rh7 {[%clk 00:03:11]} {[%emt 00:00:55]} Re4 {[%clk 00:16:36]} {[%emt
00:02:53]} 53. Kf3 {[%clk 00:03:31]} {[%emt 00:00:10]} Rxe6 {[%clk 00:16:55]}
{[%emt 00:00:12]} 54. Rd7 {[%clk 00:02:56]} {[%emt 00:01:04]} Re3+ {[%clk
00:16:59]} {[%emt 00:00:25]} 55. Kf2 {[%clk 00:03:18]} {[%emt 00:00:09]} Re4
{[%clk 00:17:24]} {[%emt 00:00:04]} 56. Kf3 {[%clk 00:03:30]} {[%emt 00:00:19]}
Rf4+ {[%clk 00:17:46]} {[%emt 00:00:08]} 57. Kg3 {[%clk 00:03:44]} {[%emt
00:00:13]} Ke8 {[%clk 00:14:34]} {[%emt 00:03:45]} 58. Rd6 {[%clk 00:03:59]}
{[%emt 00:00:15]} Ke7 {[%clk 00:14:00]} {[%emt 00:01:04]} 59. Rxh6 {[%clk
00:04:12]} {[%emt 00:00:17]} d3 {[%clk 00:12:10]} {[%emt 00:02:20]} 60. Rh2
{[%clk 00:03:57]} {[%emt 00:00:43]} Rd4 {[%clk 00:10:43]} {[%emt 00:01:58]} 61.
Rd2 {[%clk 00:04:23]} {[%emt 00:00:05]} Ke6 {[%clk 00:10:52]} {[%emt 00:00:20]}
62. Kf3 {[%clk 00:03:40]} {[%emt 00:01:14]} Ke5 {[%clk 00:07:28]} {[%emt
00:03:53]} 0-1

[Event "The Schackveckan 2023: Göteborg open"]
[Site "Göteborgs schackcentrum, Vegagatan 20, Gothenburg, Sweden"]
[Date "2023.08.13"]
[Round "7.2"]
[White "Bengtsson, Siv"]
[Black "Olsson, William"]
[Result "0-1"]
[TimeControl "15 minutes + 5 seconds per move from move one (Round 1 - 4) / 90 minutes + 30 seconds per move from move one (Round 5 - 8)"]
[BlackTitle "FM"]
[WhiteFideId "1701673"]
[BlackFideId "1741721"]
[WhiteElo "2010"]
[BlackElo "2400"]

1. e4 {[%clk 01:30:56]} {[%emt 00:00:03]} c5 {[%clk 01:30:56]} {[%emt
00:00:05]} 2. Nf3 {[%clk 01:31:20]} {[%emt 00:00:06]} d6 {[%clk 01:31:24]}
{[%emt 00:00:02]} 3. d4 {[%clk 01:31:42]} {[%emt 00:00:07]} cxd4 {[%clk
01:31:52]} {[%emt 00:00:03]} 4. Nxd4 {[%clk 01:32:01]} {[%emt 00:00:11]} Nf6
{[%clk 01:32:17]} {[%emt 00:00:04]} 5. Nc3 {[%clk 01:32:25]} {[%emt 00:00:07]}
g6 {[%clk 01:32:43]} {[%emt 00:00:04]} 6. Be3 {[%clk 01:31:09]} {[%emt
00:01:46]} Bg7 {[%clk 01:33:09]} {[%emt 00:00:05]} 7. f3 {[%clk 01:29:43]}
{[%emt 00:01:55]} O-O {[%clk 01:33:32]} {[%emt 00:00:07]} 8. Bc4 {[%clk
01:27:44]} {[%emt 00:02:28]} Nc6 {[%clk 01:33:54]} {[%emt 00:00:09]} 9. Qd2
{[%clk 01:26:08]} {[%emt 00:02:06]} Bd7 {[%clk 01:34:17]} {[%emt 00:00:07]} 10.
Bb3 {[%emt 00:00:19]} Rc8 {[%clk 01:33:39]} {[%emt 00:01:01]} 11. O-O-O {[%clk
01:25:51]} {[%emt 00:01:04]} Ne5 {[%clk 01:32:51]} {[%emt 00:01:19]} 12. Kb1
{[%clk 01:25:13]} {[%emt 00:01:09]} Nc4 {[%clk 01:29:16]} {[%emt 00:04:05]} 13.
Bxc4 {[%clk 01:24:42]} {[%emt 00:01:00]} Rxc4 {[%clk 01:29:40]} {[%emt
00:00:07]} 14. Qd3 {[%clk 01:24:24]} {[%emt 00:00:48]} Rc8 {[%clk 01:28:23]}
{[%emt 00:01:47]} 15. h4 {[%clk 01:20:37]} {[%emt 00:04:16]} h5 {[%clk
01:26:53]} {[%emt 00:02:00]} 16. Nde2 {[%clk 01:18:23]} {[%emt 00:02:44]} b5
{[%clk 01:25:26]} {[%emt 00:01:58]} 17. Nf4 {[%clk 01:11:26]} {[%emt 00:07:25]}
b4 {[%clk 01:14:50]} {[%emt 00:11:08]} 18. Ncd5 {[%clk 01:04:14]} {[%emt
00:07:41]} e6 {[%clk 01:13:52]} {[%emt 00:01:28]} 19. Nxb4 {[%clk 00:52:51]}
{[%emt 00:11:53]} a5 {[%clk 01:12:56]} {[%emt 00:01:27]} 20. Qxd6 {[%clk
00:48:19]} {[%emt 00:05:01]} axb4 {[%clk 01:13:10]} {[%emt 00:00:17]} 21. Bb6
{[%clk 00:46:22]} {[%emt 00:02:26]} Qe8 {[%clk 01:13:25]} {[%emt 00:00:16]} 22.
Qxb4 {[%clk 00:36:50]} {[%emt 00:10:02]} Rb8 {[%clk 01:07:14]} {[%emt
00:06:41]} 23. c4 {[%clk 00:34:11]} {[%emt 00:03:08]} Bc6 {[%clk 01:07:17]}
{[%emt 00:00:28]} 24. Rd6 {[%clk 00:28:15]} {[%emt 00:06:24]} Nxe4 {[%clk
01:02:16]} {[%emt 00:05:32]} 25. fxe4 {[%clk 00:28:10]} {[%emt 00:00:35]} Be5
{[%clk 01:02:38]} {[%emt 00:00:08]} 26. c5 {[%clk 00:25:15]} {[%emt 00:03:25]}
Bxf4 {[%clk 01:02:38]} {[%emt 00:00:30]} 27. Rd3 {[%clk 00:25:22]} {[%emt
00:00:21]} Qe7 {[%clk 01:02:15]} {[%emt 00:00:54]} 28. Qd4 {[%clk 00:17:58]}
{[%emt 00:07:55]} Bh6 {[%clk 01:01:17]} {[%emt 00:01:28]} 29. Re1 {[%clk
00:16:28]} {[%emt 00:02:00]} Bg7 {[%clk 01:01:36]} {[%emt 00:00:11]} 30. Qd6
{[%clk 00:16:47]} {[%emt 00:00:11]} Qxh4 {[%clk 00:59:47]} {[%emt 00:02:20]} 31.
g3 {[%clk 00:16:40]} {[%emt 00:00:36]} Qf6 {[%clk 01:00:13]} {[%emt 00:00:04]}
32. Rd2 {[%clk 00:15:15]} {[%emt 00:01:54]} Rfc8 {[%clk 01:00:04]} {[%emt
00:00:40]} 33. Qf4 {[%clk 00:11:03]} {[%emt 00:04:41]} Ra8 {[%clk 00:58:58]}
{[%emt 00:01:37]} 34. e5 {[%clk 00:07:14]} {[%emt 00:04:19]} Qxf4 {[%clk
00:59:02]} {[%emt 00:00:25]} 35. gxf4 {[%clk 00:07:42]} {[%emt 00:00:02]} Ra4
{[%clk 00:59:25]} {[%emt 00:00:08]} 36. Rf1 {[%clk 00:06:20]} {[%emt 00:01:51]}
Bh6 {[%clk 00:59:49]} {[%emt 00:00:06]} 37. Rdf2 {[%clk 00:06:19]} {[%emt
00:00:29]} Bb5 {[%clk 01:00:14]} {[%emt 00:00:08]} 38. Rd1 {[%clk 00:06:11]}
{[%emt 00:00:38]} Rxf4 {[%clk 01:00:28]} {[%emt 00:00:16]} 39. Rfd2 {[%clk
00:05:38]} {[%emt 00:01:02]} h4 {[%clk 00:59:38]} {[%emt 00:01:21]} 40. Rd8+
{[%clk 00:05:24]} {[%emt 00:00:44]} Rxd8 {[%clk 01:00:03]} {[%emt 00:00:05]} 41.
Bxd8 {[%clk 00:05:39]} {[%emt 00:00:15]} h3 {[%clk 01:00:17]} {[%emt 00:00:14]}
42. Bf6 {[%clk 00:04:52]} {[%emt 00:01:18]} Rf1 {[%clk 01:00:38]} {[%emt
00:00:09]} 0-1

[Event "The Schackveckan 2023: Göteborg open"]
[Site "Göteborgs schackcentrum, Vegagatan 20, Gothenburg, Sweden"]
[Date "2023.08.13"]
[Round "7.3"]
[White "Hector, Jonny"]
[Black "Westlund, Tim"]
[Result "1-0"]
[TimeControl "15 minutes + 5 seconds per move from move one (Round 1 - 4) / 90 minutes + 30 seconds per move from move one (Round 5 - 8)"]
[WhiteTitle "GM"]
[WhiteFideId "1700090"]
[BlackFideId "1754718"]
[WhiteElo "2466"]
[BlackElo "1861"]

1. e4 {[%clk 01:30:55]} {[%emt 00:00:04]} e5 {[%clk 01:30:58]} {[%emt
00:00:04]} 2. Nf3 {[%clk 01:31:16]} {[%emt 00:00:08]} Nf6 {[%clk 01:31:18]}
{[%emt 00:00:11]} 3. Nc3 {[%clk 01:29:36]} {[%emt 00:02:09]} Nc6 {[%clk
01:31:43]} {[%emt 00:00:05]} 4. d4 {[%clk 01:29:31]} {[%emt 00:00:36]} exd4
{[%clk 01:31:22]} {[%emt 00:00:50]} 5. Nxd4 {[%clk 01:29:47]} {[%emt 00:00:14]}
Bb4 {[%clk 01:29:50]} {[%emt 00:02:02]} 6. Nxc6 {[%clk 01:30:07]} {[%emt
00:00:10]} bxc6 {[%clk 01:30:13]} {[%emt 00:00:07]} 7. Bd3 {[%clk 01:30:30]}
{[%emt 00:00:07]} d5 {[%clk 01:30:34]} {[%emt 00:00:10]} 8. exd5 {[%clk
01:30:49]} {[%emt 00:00:11]} cxd5 {[%clk 01:30:53]} {[%emt 00:00:11]} 9. O-O
{[%clk 01:31:07]} {[%emt 00:00:11]} O-O {[%clk 01:30:10]} {[%emt 00:01:13]} 10.
h3 {[%clk 01:31:29]} {[%emt 00:00:07]} c6 {[%clk 01:27:56]} {[%emt 00:02:45]}
11. Qf3 {[%clk 01:31:18]} {[%emt 00:00:40]} a5 {[%clk 01:27:10]} {[%emt
00:01:18]} 12. Bg5 {[%clk 01:29:38]} {[%emt 00:02:09]} Be7 {[%clk 01:25:52]}
{[%emt 00:01:49]} 13. Ne2 {[%clk 01:28:26]} {[%emt 00:01:41]} h6 {[%clk
01:20:15]} {[%emt 00:06:08]} 14. Bf4 {[%clk 01:24:45]} {[%emt 00:04:10]} Re8
{[%clk 01:18:46]} {[%emt 00:02:00]} 15. Rad1 {[%clk 01:21:33]} {[%emt
00:03:41]} Bf8 {[%clk 01:14:19]} {[%emt 00:04:57]} 16. c4 {[%clk 01:19:51]}
{[%emt 00:02:12]} Bb7 {[%clk 01:08:11]} {[%emt 00:06:45]} 17. cxd5 {[%clk
01:16:49]} {[%emt 00:03:31]} cxd5 {[%clk 01:08:13]} {[%emt 00:00:26]} 18. Nd4
{[%clk 01:16:24]} {[%emt 00:00:57]} Qb6 {[%clk 01:05:17]} {[%emt 00:03:28]} 19.
Be3 {[%clk 01:12:41]} {[%emt 00:04:11]} Qc7 {[%clk 01:01:29]} {[%emt 00:04:18]}
20. Bxh6 {[%clk 01:09:06]} {[%emt 00:04:06]} gxh6 {[%clk 00:59:57]} {[%emt
00:02:02]} 21. Qxf6 {[%clk 01:09:21]} {[%emt 00:00:14]} Bg7 {[%clk 00:59:53]}
{[%emt 00:00:35]} 22. Qh4 {[%clk 01:07:49]} {[%emt 00:02:01]} Bc8 {[%clk
00:57:53]} {[%emt 00:02:31]} 23. b3 {[%clk 01:04:38]} {[%emt 00:03:40]} Qe5
{[%clk 00:56:15]} {[%emt 00:02:06]} 24. Bb5 {[%clk 01:03:13]} {[%emt 00:01:57]}
Rf8 {[%clk 00:53:50]} {[%emt 00:02:56]} 25. Bc6 {[%clk 00:58:04]} {[%emt
00:05:39]} Ra6 {[%clk 00:51:02]} {[%emt 00:03:18]} 26. Nf3 {[%clk 00:57:28]}
{[%emt 00:01:05]} Qc7 {[%clk 00:50:29]} {[%emt 00:01:04]} 27. Bxd5 {[%clk
00:57:33]} {[%emt 00:00:25]} Bb7 {[%clk 00:48:02]} {[%emt 00:02:57]} 28. Bxb7
{[%clk 00:54:33]} {[%emt 00:03:29]} Qxb7 {[%clk 00:48:24]} {[%emt 00:00:07]} 29.
Rfe1 {[%clk 00:53:57]} {[%emt 00:01:08]} Rg6 {[%clk 00:48:11]} {[%emt
00:00:44]} 30. Qe4 {[%clk 00:54:14]} {[%emt 00:00:11]} Qc8 {[%clk 00:47:31]}
{[%emt 00:01:11]} 31. Rc1 {[%clk 00:53:23]} {[%emt 00:01:21]} Qb8 {[%clk
00:46:18]} {[%emt 00:01:43]} 32. Nd4 {[%clk 00:52:10]} {[%emt 00:01:43]} Bxd4
{[%clk 00:44:23]} {[%emt 00:02:25]} 33. Qxd4 {[%clk 00:52:33]} {[%emt
00:00:07]} Qa8 {[%clk 00:44:40]} {[%emt 00:00:13]} 34. Qe4 {[%clk 00:52:22]}
{[%emt 00:00:41]} Qb8 {[%clk 00:44:27]} {[%emt 00:00:43]} 35. Rc6 {[%clk
00:51:47]} {[%emt 00:01:05]} Rxc6 {[%clk 00:42:54]} {[%emt 00:02:04]} 36. Qxc6
{[%clk 00:52:09]} {[%emt 00:00:07]} Qf4 {[%clk 00:43:13]} {[%emt 00:00:11]} 37.
Re4 {[%clk 00:51:31]} {[%emt 00:01:07]} Qf5 {[%clk 00:41:09]} {[%emt 00:02:35]}
38. Rg4+ {[%clk 00:51:47]} {[%emt 00:00:14]} Kh7 {[%clk 00:41:09]} {[%emt
00:00:30]} 39. Qe4 {[%clk 00:51:27]} {[%emt 00:00:48]} Qxe4 {[%clk 00:41:24]}
{[%emt 00:00:17]} 40. Rxe4 {[%clk 00:51:54]} {[%emt 00:00:02]} Rd8 {[%clk
00:41:45]} {[%emt 00:00:10]} 41. Re2 {[%clk 00:51:36]} {[%emt 00:00:48]} Kg6
{[%clk 00:41:58]} {[%emt 00:00:18]} 42. Rc2 {[%clk 00:51:08]} {[%emt 00:00:57]}
a4 {[%clk 00:41:57]} {[%emt 00:00:32]} 43. Kf1 {[%clk 00:48:15]} {[%emt
00:03:21]} axb3 {[%clk 00:40:12]} {[%emt 00:02:16]} 44. axb3 {[%clk 00:48:41]}
{[%emt 00:00:04]} Rd1+ {[%clk 00:40:36]} {[%emt 00:00:06]} 45. Ke2 {[%clk
00:49:04]} {[%emt 00:00:06]} Rb1 {[%clk 00:40:53]} {[%emt 00:00:14]} 46. Rc3
{[%clk 00:49:28]} {[%emt 00:00:06]} Rb2+ {[%clk 00:40:58]} {[%emt 00:00:24]} 47.
Ke3 {[%clk 00:48:24]} {[%emt 00:01:35]} f5 {[%clk 00:40:12]} {[%emt 00:01:16]}
48. g3 {[%clk 00:48:04]} {[%emt 00:00:49]} Kg5 {[%clk 00:40:18]} {[%emt
00:00:25]} 49. f4+ {[%clk 00:45:01]} {[%emt 00:03:32]} Kh5 {[%clk 00:40:19]}
{[%emt 00:00:30]} 50. Kd4 {[%clk 00:45:21]} {[%emt 00:00:10]} Ra2 {[%clk
00:39:03]} {[%emt 00:01:46]} 51. b4 {[%clk 00:45:32]} {[%emt 00:00:18]} Ra8
{[%clk 00:37:48]} {[%emt 00:01:46]} 52. b5 {[%clk 00:45:54]} {[%emt 00:00:08]}
Ra5 {[%clk 00:37:24]} {[%emt 00:00:54]} 53. Rb3 {[%clk 00:46:06]} {[%emt
00:00:17]} Ra7 {[%clk 00:37:34]} {[%emt 00:00:21]} 54. b6 {[%clk 00:46:25]}
{[%emt 00:00:10]} Rb7 {[%clk 00:37:41]} {[%emt 00:00:23]} 55. Kc5 {[%clk
00:46:47]} {[%emt 00:00:08]} Rb8 {[%clk 00:35:03]} {[%emt 00:03:09]} 56. b7
{[%clk 00:47:08]} {[%emt 00:00:09]} Rd8 {[%clk 00:35:12]} {[%emt 00:00:22]} 57.
b8=Q {[%clk 00:47:12]} {[%emt 00:00:26]} Rg8 {[%clk 00:35:37]} {[%emt
00:00:04]} 58. g4 {[%clk 00:47:19]} {[%emt 00:00:23]} 1-0

[Event "The Schackveckan 2023: Göteborg open"]
[Site "Göteborgs schackcentrum, Vegagatan 20, Gothenburg, Sweden"]
[Date "2023.08.13"]
[Round "7.4"]
[White "Wesslen, Ulf"]
[Black "Bjorklund, Thomas"]
[Result "1/2-1/2"]
[TimeControl "15 minutes + 5 seconds per move from move one (Round 1 - 4) / 90 minutes + 30 seconds per move from move one (Round 5 - 8)"]
[WhiteFideId "1705199"]
[BlackFideId "1724576"]
[WhiteElo "1916"]
[BlackElo "2139"]

1. Nf3 {[%clk 01:30:52]} {[%emt 00:00:08]} d5 {[%clk 01:30:54]} {[%emt
00:00:07]} 2. g3 {[%clk 01:31:14]} {[%emt 00:00:08]} Nf6 {[%clk 01:31:18]}
{[%emt 00:00:06]} 3. Bg2 {[%clk 01:31:26]} {[%emt 00:00:18]} c5 {[%clk
01:31:38]} {[%emt 00:00:10]} 4. O-O {[%clk 01:30:48]} {[%emt 00:01:08]} g6
{[%clk 01:31:45]} {[%emt 00:00:24]} 5. d3 {[%clk 01:30:41]} {[%emt 00:00:37]}
Bg7 {[%clk 01:32:08]} {[%emt 00:00:06]} 6. Nc3 {[%clk 01:29:10]} {[%emt
00:02:01]} Nc6 {[%clk 01:29:54]} {[%emt 00:02:44]} 7. Rb1 {[%clk 01:24:27]}
{[%emt 00:05:13]} O-O {[%clk 01:29:11]} {[%emt 00:01:13]} 8. a3 {[%clk
01:23:21]} {[%emt 00:01:36]} a5 {[%clk 01:28:06]} {[%emt 00:01:36]} 9. Nb5
{[%clk 01:16:45]} {[%emt 00:07:05]} e5 {[%clk 01:25:52]} {[%emt 00:02:43]} 10.
c4 {[%clk 01:14:55]} {[%emt 00:02:21]} dxc4 {[%clk 01:22:13]} {[%emt 00:04:09]}
11. dxc4 {[%clk 01:15:10]} {[%emt 00:00:15]} Bf5 {[%clk 01:22:33]} {[%emt
00:00:10]} 12. Ra1 {[%clk 01:13:14]} {[%emt 00:02:26]} e4 {[%clk 01:21:58]}
{[%emt 00:01:06]} 13. Nh4 {[%clk 01:06:20]} {[%emt 00:07:23]} Nd4 {[%clk
01:20:53]} {[%emt 00:01:35]} 14. Nxf5 {[%clk 01:03:52]} {[%emt 00:02:58]} gxf5
{[%clk 01:21:02]} {[%emt 00:00:21]} 15. Bf4 {[%clk 00:59:15]} {[%emt 00:05:07]}
Nxb5 {[%clk 01:19:26]} {[%emt 00:02:06]} 16. cxb5 {[%clk 00:58:11]} {[%emt
00:01:33]} Nd5 {[%clk 01:19:33]} {[%emt 00:00:24]} 17. Qc2 {[%clk 00:56:23]}
{[%emt 00:02:17]} Nxf4 {[%clk 01:15:38]} {[%emt 00:04:26]} 18. gxf4 {[%clk
00:56:41]} {[%emt 00:00:12]} Qc7 {[%clk 01:15:52]} {[%emt 00:00:15]} 19. e3
{[%clk 00:53:57]} {[%emt 00:03:15]} b6 {[%clk 01:14:31]} {[%emt 00:01:52]} 20.
Rad1 {[%clk 00:51:01]} {[%emt 00:03:25]} Rad8 {[%clk 01:14:27]} {[%emt
00:00:34]} 21. b3 {[%clk 00:45:22]} {[%emt 00:06:09]} Qe7 {[%clk 01:13:57]}
{[%emt 00:01:00]} 22. Bh3 {[%clk 00:34:51]} {[%emt 00:11:01]} Qe6 {[%clk
01:13:38]} {[%emt 00:00:50]} 23. Rxd8 {[%clk 00:33:28]} {[%emt 00:01:52]} Rxd8
{[%clk 01:14:06]} {[%emt 00:00:02]} 24. Rd1 {[%clk 00:33:03]} {[%emt 00:00:54]}
Rd5 {[%clk 01:14:25]} {[%emt 00:00:12]} 25. Qe2 {[%clk 00:30:22]} {[%emt
00:03:11]} Rxd1+ {[%clk 01:10:49]} {[%emt 00:04:06]} 26. Qxd1 {[%clk 00:30:43]}
{[%emt 00:00:09]} h6 {[%clk 01:10:24]} {[%emt 00:00:56]} 27. a4 {[%clk
00:24:14]} {[%emt 00:06:59]} Kh7 {[%clk 01:09:10]} {[%emt 00:01:44]} 28. Kh1
{[%clk 00:24:05]} {[%emt 00:00:39]} Kg6 {[%clk 01:08:35]} {[%emt 00:01:05]} 29.
Bf1 {[%clk 00:21:53]} {[%emt 00:02:42]} Qf6 {[%clk 01:07:30]} {[%emt 00:01:35]}
30. Qd5 {[%clk 00:17:26]} {[%emt 00:04:56]} Qe6 {[%clk 01:07:08]} {[%emt
00:00:52]} 31. Qd1 {[%clk 00:17:20]} 1/2-1/2